[Event "ESP-chT Primera Division 2019"]
[Site "Linares"]
[Date "2019.08.26"]
[Round "1.8"]
[White "Salgado Lopez, Ivan"]
[Black "Alsina Leal, Daniel"]
[Result "1/2-1/2"]
[ECO "A28"]
[WhiteElo "2596"]
[BlackElo "2477"]
[Annotator "ChessBase"]
[PlyCount "73"]
[EventDate "2019.08.26"]
[EventType "team-tourn"]
[EventCountry "ESP"]
[SourceTitle "playchess.com"]
[Source "ChessBase"]
[SourceQuality "1"]
[TimeControl "5400+30"]

1. c4 {[%emt 0:00:00]} e5 {[%emt 0:00:00]} 2. Nc3 {[%emt 0:00:00]} Nf6 {[%emt 0:00:00]} 3. Nf3 {[%emt 0:00:31]} Nc6 {[%emt 0:00:00]} 4. Qc2 {[%emt 0:00:05]} g6 {[%emt 0:12:08]} 5. g3 {[%emt 0:04:30]} Bg7 {[%emt 0:00:18]} 6. Bg2 {[%emt 0:00:07]} O-O {[%emt 0:00:50]} 7. O-O {[%emt 0:00:10]} d5 {[%emt 0:08:20]} 8. cxd5 {[%emt 0:02:33]} Nxd5 {[%emt 0:00:08]} 9. Nxd5 {[%emt 0:01:57]} Qxd5 {[%emt 0:00:07]} 10. d3 {[%emt 0:00:17]} Qd6 {[%emt 0:06:09]} 11. Be3 {[%emt 0:02:25]} Nd4 {[%emt 0:04:24]} 12. Nxd4 {[%emt 0:12:20]} exd4 {[%emt 0:00:10]} 13. Bf4 {[%emt 0:00:39]} Be5 {[%emt 0:00:33]} 14. Bxe5 {[%emt 0:01:26]} Qxe5 {[%emt 0:00:06]} 15. Rfe1 {[%emt 0:00:09]} c6 {[%emt 0:01:57]} 16. Qb3 {[%emt 0:02:50]} Qe7 {[%emt 0:10:09]} 17. a3 {[%emt 0:10:41]} Be6 {[%emt 0:02:27]} 18. Qc2 {[%emt 0:00:19]} a5 {[%emt 0:06:55]} 19. Rac1 {[%emt 0:01:57]} a4 {[%emt 0:08:17]} 20. e3 {[%emt 0:00:21]} Rfd8 {[%emt 0:03:09]} 21. e4 {[%emt 0:00:26]} Bb3 {[%emt 0:00:25]} 22. Qc5 {[%emt 0:03:32]} Qxc5 {[%emt 0:02:27]} 23. Rxc5 {[%emt 0:00:24]} Ra6 {[%emt 0:01:31]} 24. f4 {[%emt 0:00:30]} Rb6 {[%emt 0:01:48]} 25. Bf3 {[%emt 0:01:21]} f6 {[%emt 0:06:38]} 26. Kf2 {[%emt 0:02:52]} Kf8 {[%emt 0:06:08]} 27. Re2 {[%emt 0:00:46]} Rb5 {[%emt 0:04:32]} 28. Rxb5 {[%emt 0:02:26]} cxb5 {[%emt 0:00:04]} 29. e5 {[%emt 0:00:13]} f5 {[%emt 0:03:06]} 30. Bxb7 {[%emt 0:03:58]} Rb8 {[%emt 0:00:58]} 31. Bc6 {[%emt 0:02:15]} Rb6 {[%emt 0:00:17]} 32. Bf3 {[%emt 0:01:02]} Rb8 {[%emt 0:01:40]} 33. g4 {[%emt 0:04:52]} Rc8 {[%emt 0:00:11]} 34. gxf5 {[%emt 0:16:06]} gxf5 {[%emt 0:00:04]} 35. e6 {[%emt 0:00:08]} Ke7 {[%emt 0:00:33]} 36. Re5 {[%emt 0:00:06]} Rc2+ {[%emt 0:00:48]} 37. Re2 {[%emt 0:00:22]} 1/2-1/2

[Event "ESP-chT Primera Division 2019"]
[Site "Linares"]
[Date "2019.08.26"]
[Round "1.10"]
[White "Sousa, Andre Ventura"]
[Black "Martinez Ramirez, Erik"]
[Result "1-0"]
[ECO "B27"]
[WhiteElo "2362"]
[BlackElo "2217"]
[Annotator "NA"]
[PlyCount "53"]
[EventDate "2019.08.26"]
[EventType "team-tourn"]
[EventCountry "ESP"]
[SourceTitle "playchess.com"]
[Source "ChessBase"]
[SourceQuality "1"]
[TimeControl "5400+30"]

1. e4 {[%emt 0:00:00]} c5 {[%emt 0:00:00]} 2. Nf3 {[%emt 0:00:00]} g6 {[%emt 0:00:00]} 3. d4 {[%emt 0:00:03]} cxd4 {[%emt 0:00:00]} 4. Nxd4 {[%emt 0:00:04]} Nf6 {[%emt 0:00:11]} 5. Nc3 {[%emt 0:00:08]} Nc6 {[%emt 0:00:07]} 6. Nxc6 {[%emt 0:06:33]} bxc6 {[%emt 0:00:09]} 7. e5 {[%emt 0:00:04]} Ng8 {[%emt 0:00:06]} 8. Bc4 {[%emt 0:01:13]} Bg7 {[%emt 0:00:09]} 9. Qf3 {[%emt 0:02:55]} f5 {[%emt 0:00:09]} 10. Bf4 {[%emt 0:08:51]} e6 {[%emt 0:00:34]} 11. O-O-O {[%emt 0:05:56]} Qc7 {[%emt 0:00:23]} 12. h4 {[%emt 0:03:30]} Rb8 {[%emt 0:03:11]} 13. h5 {[%emt 0:25:52]} Rb4 {[%emt 0:06:49]} 14. hxg6 {[%emt 0:22:39]} Rxc4 {[%emt 0:07:20]} 15. Rxh7 {[%emt 0:00:11]} Rxf4 {[%emt 0:05:39]} 16. Qxf4 {[%emt 0:00:07]} Rxh7 {[%emt 0:09:43]} 17. gxh7 {[%emt 0:00:05]} Ne7 {[%emt 0:00:09]} 18. Rh1 {[%emt 0:04:28]} Ng6 {[%emt 0:03:19]} 19. Qg5 {[%emt 0:00:20]} Kf7 {[%emt 0:00:22]} 20. f4 {[%emt 0:00:34]} d6 {[%emt 0:04:08]} 21. Rh6 {[%emt 0:10:29]} Nh8 {[%emt 0:11:58]} 22. Rf6+ {[%emt 0:00:18]} Ke8 {[%emt 0:00:25]} 23. exd6 {[%emt 0:00:56]} Qxd6 {[%emt 0:15:13]} 24. Qxg7 {[%emt 0:00:04]} Qxf4+ {[%emt 0:00:08]} 25. Kd1 {[%emt 0:00:02]} Qd4+ {[%emt 0:00:13]} 26. Ke2 {[%emt 0:00:19]} Qc4+ {[%emt 0:00:16]} 27. Ke3 {[%emt 0:02:05]} 1-0

[Event "ESP-chT Primera Division 2019"]
[Site "Linares"]
[Date "2019.08.26"]
[Round "1.11"]
[White "Rivas Garcia, Victor"]
[Black "Gomez Dieguez, David"]
[Result "1/2-1/2"]
[ECO "C50"]
[WhiteElo "2165"]
[BlackElo "2296"]
[Annotator "NA"]
[PlyCount "81"]
[EventDate "2019.08.26"]
[EventType "team-tourn"]
[EventCountry "ESP"]
[SourceTitle "playchess.com"]
[Source "ChessBase"]
[SourceQuality "1"]
[TimeControl "5400+30"]

1. e4 {[%emt 0:00:00]} e5 {[%emt 0:00:00]} 2. Bc4 {[%emt 0:00:00]} Nf6 {[%emt 0:00:00]} 3. d3 {[%emt 0:00:00]} Nc6 {[%emt 0:00:00]} 4. Nf3 {[%emt 0:00:01]} Bc5 {[%emt 0:00:00]} 5. c3 {[%emt 0:00:23]} a6 {[%emt 0:00:00]} 6. Bb3 {[%emt 0:00:32]} Ba7 {[%emt 0:00:01]} 7. h3 {[%emt 0:00:37]} h6 {[%emt 0:00:49]} 8. Nbd2 {[%emt 0:02:07]} O-O {[%emt 0:07:12]} 9. O-O {[%emt 0:02:15]} d6 {[%emt 0:07:21]} 10. Nc4 {[%emt 0:01:37]} Be6 {[%emt 0:10:14]} 11. Be3 {[%emt 0:07:19]} b5 {[%emt 0:02:28]} 12. Ncd2 {[%emt 0:01:00]} Bxe3 {[%emt 0:00:34]} 13. fxe3 {[%emt 0:00:08]} d5 {[%emt 0:00:01]} 14. exd5 {[%emt 0:04:28]} Nxd5 {[%emt 0:00:26]} 15. Qe2 {[%emt 0:09:36]} Qe7 {[%emt 0:09:49]} 16. d4 {[%emt 0:10:57]} Nb6 {[%emt 0:03:04]} 17. Bxe6 {[%emt 0:08:06]} Qxe6 {[%emt 0:01:10]} 18. Nb3 {[%emt 0:07:42]} exd4 {[%emt 0:10:48]} 19. cxd4 {[%emt 0:00:22]} Rae8 {[%emt 0:03:19]} 20. Nc5 {[%emt 0:04:41]} Qd6 {[%emt 0:01:35]} 21. Qf2 {[%emt 0:01:59]} Nd5 {[%emt 0:04:09]} 22. Rfe1 {[%emt 0:04:26]} f5 {[%emt 0:08:23]} 23. Nxa6 {[%emt 0:03:13]} f4 {[%emt 0:11:42]} 24. exf4 {[%emt 0:01:16]} Rxe1+ {[%emt 0:00:16]} 25. Rxe1 {[%emt 0:01:48]} Rxf4 {[%emt 0:01:37]} 26. Qe2 {[%emt 0:03:35]} Nxd4 {[%emt 0:03:41]} 27. Nxd4 {[%emt 0:00:19]} Rxd4 {[%emt 0:00:21]} 28. Qxb5 {[%emt 0:05:18]} Qg3 {[%emt 0:00:30]} 29. Qe8+ {[%emt 0:09:10]} Kh7 {[%emt 0:00:04]} 30. Qe5 {[%emt 0:01:44]} Nf4 {[%emt 0:01:00]} 31. Qf5+ {[%emt 0:00:29]} Ng6 {[%emt 0:00:05]} 32. Qf2 {[%emt 0:01:34]} Qd6 {[%emt 0:01:09]} 33. Nxc7 {[%emt 0:00:46]} Rd2 {[%emt 0:02:04]} 34. Ne8 {[%emt 0:00:20]} Qb4 {[%emt 0:04:32]} 35. Qf7 {[%emt 0:03:02]} Qxb2 {[%emt 0:01:56]} 36. Kh1 {[%emt 0:00:08]} Qd4 {[%emt 0:02:02]} 37. Qf5 {[%emt 0:02:56]} Rf2 {[%emt 0:01:37]} 38. Qb1 {[%emt 0:00:27]} Qd5 {[%emt 0:01:14]} 39. Qe4 {[%emt 0:01:27]} Qxa2 {[%emt 0:00:46]} 40. Qd4 {[%emt 0:01:06]} Qf7 {[%emt 0:00:47]} 41. Nd6 {[%emt 0:00:46]} 1/2-1/2

[Event "ESP-chT Primera Division 2019"]
[Site "Linares"]
[Date "2019.08.26"]
[Round "1.12"]
[White "Hernandez Estevez, Yudania"]
[Black "Garcia-Castany Musellas, Gal.la"]
[Result "1/2-1/2"]
[ECO "C70"]
[WhiteElo "2247"]
[BlackElo "2149"]
[Annotator "NA"]
[PlyCount "89"]
[EventDate "2019.08.26"]
[EventType "team-tourn"]
[EventCountry "ESP"]
[SourceTitle "playchess.com"]
[Source "ChessBase"]
[SourceQuality "1"]
[TimeControl "5400+30"]

1. e4 {[%emt 0:00:00]} e5 {[%emt 0:00:00]} 2. Nf3 {[%emt 0:00:00]} Nc6 {[%emt 0:00:00]} 3. Bb5 {[%emt 0:00:04]} a6 {[%emt 0:00:00]} 4. Ba4 {[%emt 0:00:20]} Nge7 {[%emt 0:00:12]} 5. O-O {[%emt 0:00:44]} g6 {[%emt 0:00:25]} 6. c3 {[%emt 0:01:08]} Bg7 {[%emt 0:00:09]} 7. d4 {[%emt 0:00:32]} exd4 {[%emt 0:00:26]} 8. cxd4 {[%emt 0:00:07]} b5 {[%emt 0:00:48]} 9. Bb3 {[%emt 0:00:50]} d6 {[%emt 0:00:40]} 10. h3 {[%emt 0:02:31]} O-O {[%emt 0:01:39]} 11. Nc3 {[%emt 0:00:05]} Bb7 {[%emt 0:05:51]} 12. Bf4 {[%emt 0:04:15]} Na5 {[%emt 0:04:19]} 13. Bc2 {[%emt 0:02:13]} Nc4 {[%emt 0:04:36]} 14. Qc1 {[%emt 0:03:22]} c5 {[%emt 0:25:32]} 15. Bh6 {[%emt 0:02:17]} cxd4 {[%emt 0:13:37]} 16. Bxg7 {[%emt 0:00:15]} Kxg7 {[%emt 0:00:04]} 17. Nxd4 {[%emt 0:00:22]} Nc6 {[%emt 0:07:21]} 18. Nxc6 {[%emt 0:12:03]} Bxc6 {[%emt 0:00:04]} 19. b3 {[%emt 0:03:08]} Qf6 {[%emt 0:10:48]} 20. Ne2 {[%emt 0:09:07]} Ne5 {[%emt 0:01:11]} 21. Qd2 {[%emt 0:01:56]} Rfe8 {[%emt 0:03:42]} 22. Nd4 {[%emt 0:10:46]} Rac8 {[%emt 0:02:36]} 23. Rad1 {[%emt 0:01:59]} Nd7 {[%emt 0:01:18]} 24. Rfe1 {[%emt 0:02:46]} Nc5 {[%emt 0:06:49]} 25. f3 {[%emt 0:02:35]} Ne6 {[%emt 0:01:55]} 26. Nxe6+ {[%emt 0:03:41]} Rxe6 {[%emt 0:00:01]} 27. b4 {[%emt 0:00:32]} Rd8 {[%emt 0:03:54]} 28. Bb3 {[%emt 0:01:07]} Re7 {[%emt 0:00:03]} 29. Re3 {[%emt 0:01:51]} Qf4 {[%emt 0:05:05]} 30. Qc3+ {[%emt 0:04:09]} Kg8 {[%emt 0:00:01]} 31. Red3 {[%emt 0:00:15]} Be8 {[%emt 0:00:48]} 32. Rd5 {[%emt 0:04:58]} Red7 {[%emt 0:00:39]} 33. Qd4 {[%emt 0:02:13]} h5 {[%emt 0:00:38]} 34. Qb6 {[%emt 0:03:08]} Kg7 {[%emt 0:00:31]} 35. a4 {[%emt 0:00:49]} Rc8 {[%emt 0:00:43]} 36. axb5 {[%emt 0:03:34]} axb5 {[%emt 0:00:06]} 37. Qd4+ {[%emt 0:01:33]} Kh7 {[%emt 0:00:15]} 38. Rxb5 {[%emt 0:04:08]} Rdc7 {[%emt 0:00:09]} 39. Rd5 {[%emt 0:00:43]} Rc3 {[%emt 0:00:48]} 40. Ba2 {[%emt 0:02:45]} Rc2 {[%emt 0:00:35]} 41. Bb1 {[%emt 0:00:42]} Qg3 {[%emt 0:01:01]} 42. Bxc2 {[%emt 0:02:26]} Rxc2 {[%emt 0:00:01]} 43. Rd2 {[%emt 0:01:37]} Rc1+ {[%emt 0:00:04]} 44. Rd1 {[%emt 0:00:47]} Rc2 {[%emt 0:00:03]} 45. Rd2 {[%emt 0:01:18]} 1/2-1/2

[Event "ESP-chT Primera Division 2019"]
[Site "Linares"]
[Date "2019.08.26"]
[Round "1.15"]
[White "Rodriguez Amezqueta, Carlos"]
[Black "Henderson de La Fuente, Lance"]
[Result "0-1"]
[ECO "A40"]
[WhiteElo "2063"]
[BlackElo "2487"]
[Annotator "ChessBase"]
[PlyCount "104"]
[EventDate "2019.08.26"]
[EventType "team-tourn"]
[EventCountry "ESP"]
[SourceTitle "playchess.com"]
[Source "ChessBase"]
[SourceQuality "1"]
[TimeControl "5400+30"]

1. d4 {[%emt 0:00:00]} e6 {[%emt 0:00:23]} 2. Bf4 {[%emt 0:00:00]} Nf6 {[%emt 0:00:44]} 3. e3 {[%emt 0:00:00]} c5 {[%emt 0:00:49]} 4. c3 {[%emt 0:00:08]} b6 {[%emt 0:01:04]} 5. Nf3 {[%emt 0:00:43]} Bb7 {[%emt 0:00:09]} 6. Bd3 {[%emt 0:00:22]} Be7 {[%emt 0:00:16]} 7. h3 {[%emt 0:00:18]} O-O {[%emt 0:01:54]} 8. O-O {[%emt 0:00:15]} d6 {[%emt 0:00:38]} 9. Nbd2 {[%emt 0:00:57]} cxd4 {[%emt 0:02:04]} 10. exd4 {[%emt 0:01:42]} Nbd7 {[%emt 0:00:28]} 11. Re1 {[%emt 0:00:54]} Re8 {[%emt 0:01:40]} 12. Bh2 {[%emt 0:00:51]} Bf8 {[%emt 0:00:20]} 13. a4 {[%emt 0:01:08]} a6 {[%emt 0:00:16]} 14. Nc4 {[%emt 0:01:57]} Qc7 {[%emt 0:00:38]} 15. Qe2 {[%emt 0:11:36]} h6 {[%emt 0:09:19]} 16. Ncd2 {[%emt 0:09:25]} Qc6 {[%emt 0:18:51]} 17. Ne4 {[%emt 0:08:48]} Nxe4 {[%emt 0:12:42]} 18. Bxe4 {[%emt 0:01:05]} Qxe4 {[%emt 0:05:44]} 19. Qxe4 {[%emt 0:00:03]} Bxe4 {[%emt 0:00:07]} 20. Rxe4 {[%emt 0:00:03]} b5 {[%emt 0:00:52]} 21. axb5 {[%emt 0:00:38]} axb5 {[%emt 0:00:08]} 22. Ree1 {[%emt 0:01:08]} Nb6 {[%emt 0:00:38]} 23. b3 {[%emt 0:06:33]} Rxa1 {[%emt 0:03:55]} 24. Rxa1 {[%emt 0:00:32]} Rc8 {[%emt 0:00:12]} 25. Rc1 {[%emt 0:02:38]} g5 {[%emt 0:06:42]} 26. Kf1 {[%emt 0:06:54]} d5 {[%emt 0:10:07]} 27. Ke2 {[%emt 0:03:38]} Ra8 {[%emt 0:00:35]} 28. Kd3 {[%emt 0:02:10]} Ra3 {[%emt 0:00:33]} 29. Nd2 {[%emt 0:02:58]} f6 {[%emt 0:00:47]} 30. Kc2 {[%emt 0:07:42]} Ra2+ {[%emt 0:00:15]} 31. Kd3 {[%emt 0:00:15]} Kf7 {[%emt 0:00:43]} 32. Rc2 {[%emt 0:01:37]} Ra1 {[%emt 0:02:53]} 33. c4 {[%emt 0:04:58]} bxc4+ {[%emt 0:00:55]} 34. bxc4 {[%emt 0:00:15]} dxc4+ {[%emt 0:00:05]} 35. Nxc4 {[%emt 0:00:14]} Nd5 {[%emt 0:00:49]} 36. Rb2 {[%emt 0:04:03]} h5 {[%emt 0:01:09]} 37. Bd6 {[%emt 0:02:17]} Bxd6 {[%emt 0:00:45]} 38. Nxd6+ {[%emt 0:00:02]} Kg6 {[%emt 0:01:11]} 39. g3 {[%emt 0:02:00]} Ra3+ {[%emt 0:01:18]} 40. Kc2 {[%emt 0:08:28]} h4 {[%emt 0:00:51]} 41. Rb3 {[%emt 0:00:47]} Rxb3 {[%emt 0:01:40]} 42. Kxb3 {[%emt 0:00:01]} g4 {[%emt 0:00:14]} 43. gxh4 {[%emt 0:01:38]} gxh3 {[%emt 0:00:05]} 44. Ne4 {[%emt 0:00:13]} Kh5 {[%emt 0:02:31]} 45. Ng3+ {[%emt 0:04:39]} Kxh4 {[%emt 0:00:06]} 46. Nf1 {[%emt 0:01:17]} Kg4 {[%emt 0:01:16]} 47. Nh2+ {[%emt 0:00:02]} Kf4 {[%emt 0:00:06]} 48. Kc4 {[%emt 0:00:32]} Ke4 {[%emt 0:00:18]} 49. Kc5 {[%emt 0:00:32]} Nf4 {[%emt 0:00:55]} 50. Kc4 {[%emt 0:01:16]} f5 {[%emt 0:02:09]} 51. Kc3 {[%emt 0:00:53]} Ne2+ {[%emt 0:00:18]} 52. Kd2 {[%emt 0:00:36]} Nxd4 {[%emt 0:00:05]} 0-1

[Event "ESP-chT Primera Division 2019"]
[Site "Linares"]
[Date "2019.08.26"]
[Round "1.16"]
[White "Cramling, Pia"]
[Black "Fernandez Gonzalez, Juan Carlos"]
[Result "1-0"]
[ECO "E91"]
[WhiteElo "2493"]
[BlackElo "2396"]
[Annotator "ChessBase"]
[PlyCount "71"]
[EventDate "2019.08.26"]
[EventType "team-tourn"]
[EventCountry "ESP"]
[SourceTitle "playchess.com"]
[Source "ChessBase"]
[SourceQuality "1"]
[TimeControl "5400+30"]

1. Nf3 {[%emt 0:00:00]} Nf6 {[%emt 0:00:00]} 2. c4 {[%emt 0:00:00]} g6 {[%emt 0:00:14]} 3. Nc3 {[%emt 0:00:25]} Bg7 {[%emt 0:02:39]} 4. e4 {[%emt 0:00:19]} d6 {[%emt 0:00:06]} 5. d4 {[%emt 0:00:19]} O-O {[%emt 0:01:09]} 6. Be2 {[%emt 0:01:57]} c6 {[%emt 0:03:32]} 7. h3 {[%emt 0:11:24]} Qa5 {[%emt 0:07:49]} 8. Bd2 {[%emt 0:04:36]} Nbd7 {[%emt 0:05:42]} 9. O-O {[%emt 0:08:49]} Qc7 {[%emt 0:07:50]} 10. Bg5 {[%emt 0:02:55]} e5 {[%emt 0:10:12]} 11. d5 {[%emt 0:07:20]} Nc5 {[%emt 0:12:53]} 12. Nd2 {[%emt 0:03:10]} h6 {[%emt 0:04:32]} 13. Be3 {[%emt 0:03:34]} cxd5 {[%emt 0:07:01]} 14. cxd5 {[%emt 0:00:21]} Bd7 {[%emt 0:09:57]} 15. Rc1 {[%emt 0:04:57]} Rfc8 {[%emt 0:02:03]} 16. b4 {[%emt 0:04:11]} Na6 {[%emt 0:01:30]} 17. Qb3 {[%emt 0:01:32]} Qd8 {[%emt 0:03:00]} 18. Nc4 {[%emt 0:02:06]} Be8 {[%emt 0:01:01]} 19. Na5 {[%emt 0:01:12]} Qe7 {[%emt 0:01:06]} 20. Qb1 {[%emt 0:04:55]} Bf8 {[%emt 0:02:55]} 21. Rc2 {[%emt 0:02:02]} Nc7 {[%emt 0:09:47]} 22. Rfc1 {[%emt 0:05:57]} b6 {[%emt 0:01:30]} 23. Nc6 {[%emt 0:03:36]} Bxc6 {[%emt 0:00:05]} 24. dxc6 {[%emt 0:00:06]} d5 {[%emt 0:00:23]} 25. exd5 {[%emt 0:05:08]} Nfxd5 {[%emt 0:00:23]} 26. Nxd5 {[%emt 0:00:42]} Nxd5 {[%emt 0:00:09]} 27. Bd2 {[%emt 0:00:31]} Nxb4 {[%emt 0:01:29]} 28. Bxb4 {[%emt 0:06:49]} Qxb4 {[%emt 0:00:03]} 29. Qxb4 {[%emt 0:00:15]} Bxb4 {[%emt 0:00:06]} 30. c7 {[%emt 0:00:05]} a5 {[%emt 0:01:31]} 31. Rd1 {[%emt 0:01:25]} Kg7 {[%emt 0:00:54]} 32. Rc6 {[%emt 0:02:23]} Ra7 {[%emt 0:01:12]} 33. Rd7 {[%emt 0:00:13]} Bc5 {[%emt 0:02:02]} 34. Bc4 {[%emt 0:01:07]} h5 {[%emt 0:00:07]} 35. Rxf7+ {[%emt 0:01:05]} Kh6 {[%emt 0:00:11]} 36. Bd3 {[%emt 0:00:22]} 1-0

[Event "ESP-chT Primera Division 2019"]
[Site "Linares"]
[Date "2019.08.26"]
[Round "1.17"]
[White "Iglesias Ferreira, Andres"]
[Black "Castellanos Rodriguez, Renier"]
[Result "0-1"]
[ECO "B43"]
[WhiteElo "1845"]
[BlackElo "2493"]
[Annotator "ChessBase"]
[PlyCount "60"]
[EventDate "2019.08.26"]
[EventType "team-tourn"]
[EventCountry "ESP"]
[SourceTitle "playchess.com"]
[Source "ChessBase"]
[SourceQuality "1"]
[TimeControl "5400+30"]

1. e4 {[%emt 0:00:00]} c5 {[%emt 0:00:00]} 2. Nf3 {[%emt 0:00:00]} e6 {[%emt 0:00:33]} 3. d4 {[%emt 0:00:00]} cxd4 {[%emt 0:00:07]} 4. Nxd4 {[%emt 0:00:07]} a6 {[%emt 0:01:00]} 5. Nc3 {[%emt 0:01:18]} Qc7 {[%emt 0:00:41]} 6. Bd3 {[%emt 0:01:08]} Nf6 {[%emt 0:01:03]} 7. O-O {[%emt 0:01:56]} d6 {[%emt 0:02:40]} 8. Qe2 {[%emt 0:03:07]} Nbd7 {[%emt 0:02:34]} 9. Bd2 {[%emt 0:01:43]} g6 {[%emt 0:02:54]} 10. Kh1 {[%emt 0:07:27]} Bg7 {[%emt 0:01:29]} 11. f4 {[%emt 0:02:00]} O-O {[%emt 0:00:36]} 12. Rae1 {[%emt 0:02:04]} Nc5 {[%emt 0:07:59]} 13. Nb3 {[%emt 0:12:03]} b6 {[%emt 0:15:54]} 14. Nxc5 {[%emt 0:28:16]} bxc5 {[%emt 0:01:36]} 15. f5 {[%emt 0:04:00]} exf5 {[%emt 0:12:30]} 16. exf5 {[%emt 0:00:56]} Bb7 {[%emt 0:00:07]} 17. fxg6 {[%emt 0:05:54]} hxg6 {[%emt 0:01:01]} 18. Qe7 {[%emt 0:07:12]} Qc6 {[%emt 0:04:09]} 19. Qe2 {[%emt 0:06:01]} d5 {[%emt 0:06:19]} 20. Qf2 {[%emt 0:01:28]} Rae8 {[%emt 0:11:21]} 21. Rxe8 {[%emt 0:01:57]} Rxe8 {[%emt 0:02:06]} 22. Bg5 {[%emt 0:02:00]} d4 {[%emt 0:02:20]} 23. Bxf6 {[%emt 0:02:10]} Bxf6 {[%emt 0:00:13]} 24. Ne4 {[%emt 0:00:30]} Rxe4 {[%emt 0:03:56]} 25. Qxf6 {[%emt 0:00:33]} Qxf6 {[%emt 0:01:11]} 26. Rxf6 {[%emt 0:00:12]} Re1+ {[%emt 0:00:07]} 27. Rf1 {[%emt 0:00:18]} Rxf1+ {[%emt 0:00:22]} 28. Bxf1 Be4 {[%emt 0:00:21]} 29. Bd3 {[%emt 0:01:38]} Bxd3 {[%emt 0:01:22]} 30. cxd3 {[%emt 0:00:01]} c4 {[%emt 0:00:21]} 0-1

[Event "ESP-chT Primera Division 2019"]
[Site "Linares"]
[Date "2019.08.26"]
[Round "1.18"]
[White "Granero Roca, Antonio"]
[Black "Garcia Elio, Elisa"]
[Result "1-0"]
[ECO "A52"]
[WhiteElo "2354"]
[BlackElo "1812"]
[Annotator "NA"]
[PlyCount "49"]
[EventDate "2019.08.26"]
[EventType "team-tourn"]
[EventCountry "ESP"]
[SourceTitle "playchess.com"]
[Source "ChessBase"]
[SourceQuality "1"]
[TimeControl "5400+30"]

1. d4 {[%emt 0:00:00]} Nf6 {[%emt 0:00:00]} 2. c4 {[%emt 0:00:15]} e5 {[%emt 0:02:36]} 3. dxe5 {[%emt 0:00:26]} Ng4 {[%emt 0:00:22]} 4. Bf4 {[%emt 0:01:16]} Nc6 {[%emt 0:01:07]} 5. Nf3 {[%emt 0:01:34]} Bb4+ {[%emt 0:01:36]} 6. Nbd2 {[%emt 0:00:38]} Qe7 {[%emt 0:02:10]} 7. e3 {[%emt 0:01:39]} Ngxe5 {[%emt 0:01:50]} 8. Nxe5 {[%emt 0:01:43]} Nxe5 {[%emt 0:00:31]} 9. Be2 {[%emt 0:00:11]} O-O {[%emt 0:04:45]} 10. O-O {[%emt 0:01:42]} Bxd2 {[%emt 0:05:55]} 11. Qxd2 {[%emt 0:00:20]} d6 {[%emt 0:00:58]} 12. Qc3 {[%emt 0:05:44]} b6 {[%emt 0:03:34]} 13. b4 {[%emt 0:05:07]} Re8 {[%emt 0:14:18]} 14. Rfc1 {[%emt 0:03:01]} Ba6 {[%emt 0:05:39]} 15. a4 {[%emt 0:04:24]} Ng6 {[%emt 0:12:04]} 16. Bg3 {[%emt 0:01:59]} Bb7 {[%emt 0:08:28]} 17. c5 {[%emt 0:03:19]} dxc5 {[%emt 0:09:36]} 18. bxc5 {[%emt 0:00:32]} Bd5 {[%emt 0:01:21]} 19. a5 {[%emt 0:03:39]} Nh4 {[%emt 0:03:21]} 20. Qd4 {[%emt 0:03:30]} Be4 {[%emt 0:02:48]} 21. f3 {[%emt 0:06:11]} Nxf3+ {[%emt 0:13:24]} 22. gxf3 {[%emt 0:01:38]} Bg6 {[%emt 0:01:27]} 23. e4 {[%emt 0:02:26]} Rad8 {[%emt 0:00:29]} 24. Qe3 {[%emt 0:01:33]} h5 {[%emt 0:02:16]} 25. Qf4 {[%emt 0:00:45]} 1-0

[Event "ESP-chT Primera Division 2019"]
[Site "Linares"]
[Date "2019.08.26"]
[Round "1.19"]
[White "Alonso Alvarez, Aitor"]
[Black "Kokarev, Dmitry"]
[Result "1/2-1/2"]
[ECO "A04"]
[WhiteElo "2305"]
[BlackElo "2598"]
[Annotator "ChessBase"]
[PlyCount "79"]
[EventDate "2019.08.26"]
[EventType "team-tourn"]
[EventCountry "ESP"]
[SourceTitle "playchess.com"]
[Source "ChessBase"]
[SourceQuality "1"]
[TimeControl "5400+30"]

1. Nf3 {[%emt 0:00:00]} c5 {[%emt 0:00:36]} 2. g3 {[%emt 0:00:00]} g6 {[%emt 0:00:20]} 3. Bg2 {[%emt 0:00:01]} Bg7 {[%emt 0:00:12]} 4. d4 {[%emt 0:03:39]} cxd4 {[%emt 0:00:16]} 5. Nxd4 {[%emt 0:00:08]} Nc6 {[%emt 0:00:11]} 6. Nb3 {[%emt 0:00:25]} d6 {[%emt 0:00:14]} 7. O-O {[%emt 0:00:56]} Be6 {[%emt 0:00:12]} 8. Nc3 {[%emt 0:01:23]} Bxc3 {[%emt 0:01:17]} 9. bxc3 {[%emt 0:00:31]} Nf6 {[%emt 0:00:10]} 10. Bh6 {[%emt 0:13:06]} Ng4 {[%emt 0:03:32]} 11. Bf4 {[%emt 0:09:26]} Qd7 {[%emt 0:03:41]} 12. Nd4 {[%emt 0:04:24]} O-O {[%emt 0:04:45]} 13. Nxe6 {[%emt 0:07:34]} Qxe6 {[%emt 0:01:47]} 14. Rb1 {[%emt 0:31:35]} Rab8 {[%emt 0:01:41]} 15. Bd5 {[%emt 0:01:19]} Qd7 {[%emt 0:01:44]} 16. c4 {[%emt 0:00:39]} b6 {[%emt 0:02:44]} 17. Bg5 {[%emt 0:00:28]} Rbc8 {[%emt 0:06:32]} 18. Qd2 {[%emt 0:07:13]} Nce5 {[%emt 0:12:32]} 19. f3 {[%emt 0:12:23]} Nf6 {[%emt 0:01:45]} 20. Bxf6 {[%emt 0:00:02]} exf6 {[%emt 0:00:07]} 21. Qd4 {[%emt 0:02:42]} Qc7 {[%emt 0:00:34]} 22. Rb4 {[%emt 0:00:03]} Qc5 {[%emt 0:03:03]} 23. Qxc5 {[%emt 0:00:01]} Rxc5 {[%emt 0:00:07]} 24. f4 {[%emt 0:01:02]} Ng4 {[%emt 0:02:51]} 25. Rf3 {[%emt 0:00:43]} Re8 {[%emt 0:00:10]} 26. e4 {[%emt 0:01:02]} f5 {[%emt 0:00:11]} 27. exf5 {[%emt 0:01:18]} gxf5 {[%emt 0:03:57]} 28. Ra4 {[%emt 0:01:13]} Re1+ {[%emt 0:03:05]} 29. Rf1 {[%emt 0:00:01]} Rxf1+ {[%emt 0:01:38]} 30. Kxf1 {[%emt 0:00:01]} Ne3+ {[%emt 0:00:13]} 31. Ke2 {[%emt 0:01:21]} Nxd5 {[%emt 0:00:10]} 32. cxd5 {[%emt 0:00:04]} Rxc2+ {[%emt 0:00:08]} 33. Kd3 {[%emt 0:00:29]} Rc7 {[%emt 0:00:06]} 34. Rc4 {[%emt 0:01:01]} Rxc4 {[%emt 0:01:57]} 35. Kxc4 {[%emt 0:00:01]} a6 {[%emt 0:00:08]} 36. a4 {[%emt 0:00:16]} Kg7 {[%emt 0:00:47]} 37. Kb4 {[%emt 0:00:08]} h5 {[%emt 0:00:51]} 38. h4 {[%emt 0:00:09]} Kf6 {[%emt 0:00:09]} 39. a5 {[%emt 0:00:07]} b5 {[%emt 0:00:10]} 40. Kc3 {[%emt 0:00:11] Ke5} 1/2-1/2